bitfinex-derivatives/quotes_ETHF0:USTF0_20250917
["timestamp","ask_amount","ask_price","bid_price","bid_amount"]
[1758147588474,0.8048,4543.3,4543.2,0.02201116]
[1758147589568,0.458,4543.3,4543.2,0.82881116]
[1758147589767,0.684,4543.3,4543.2,0.82881116]
[1758147591677,1.0308,4543.3,4543.2,0.82881116]
[1758147593675,1.0308,4543.3,4543.2,0.02201116]
[1758147594079,1.30221206,4543.3,4542.5,0.1104]
[1758147594381,0.1311,4544.0,4542.6,0.8068]
[1758147594382,3.6658,4542.7,4542.6,0.8068]
[1758147594578,3.8918,4542.7,4542.6,0.8068]
[1758147594978,0.458,4542.7,4542.6,0.8068]
[1758147595184,0.684,4542.7,4542.6,0.8068]
[1758147596283,1.52965399,4542.7,4542.6,0.8068]
[1758147596971,1.18285399,4542.7,4542.6,0.8068]
[1758147598785,1.52555399,4542.7,4542.6,0.3516]
[1758147599082,1.52555399,4542.7,4542.5,0.1104]
[1758147599083,4.59221666,4542.7,4542.5,0.1104]
[1758147599277,1.28585399,4542.6,4542.5,0.1104]
[1758147600079,1.28585399,4542.6,4542.5,0.444]
[1758147600287,1.16915399,4542.6,4542.5,1.0287]
[1758147600787,0.72485399,4542.6,4542.5,1.0287]
[1758147601184,0.93865399,4542.6,4542.5,1.0287]
[1758147602379,0.93865399,4542.6,4542.5,0.9183]
[1758147602682,0.14695399,4542.6,4542.5,5.31435]
[1758147602883,35.665,4543.2,4543.1,0.7824]
[1758147603187,36.09400099,4543.2,4543.1,0.7824]
[1758147603884,36.30780099,4543.2,4543.1,0.7824]
[1758147604184,36.08180099,4543.2,4543.1,0.7824]
[1758147604385,36.65050099,4543.2,4543.1,0.7824]
[1758147605183,36.88100099,4543.2,4543.1,0.7824]
[1758147605383,36.88100099,4543.2,4543.1,0.2204]
[1758147605587,36.65500099,4543.2,4543.1,0.2204]
[1758147605780,36.88100099,4543.2,4543.1,0.2204]
[1758147605981,36.88100099,4543.2,4543.1,0.7896]
[1758147607283,40.08880099,4543.2,4542.6,0.3467]
[1758147607488,0.8013,4542.7,4542.6,0.7968]
[1758147607688,1.23030099,4542.7,4542.6,0.7968]
[1758147607887,1.0273,4542.7,4542.6,0.7968]
[1758147608188,1.23070605,4542.7,4542.6,0.7968]
[1758147609283,0.66220605,4542.7,4542.6,1.19284]
[1758147609580,38.8728,4543.2,4542.7,0.3467]
[1758147609785,0.42946583,4543.1,4543.0,0.9324]
[1758147609981,0.20346583,4543.1,4543.0,0.9324]
[1758147610287,0.42846583,4543.1,4543.0,4.9324]
[1758147611787,0.42846583,4543.1,4543.0,5.32841]
[1758147611987,0.42846583,4543.1,4543.0,4.9324]
[1758147612188,0.225,4543.1,4543.0,5.32841]
[1758147612383,3.2078,4543.8,4543.5,0.1356]
[1758147612591,0.2328,4543.8,4543.7,0.4501]
[1758147612889,0.66132381,4543.8,4543.7,0.7968]
[1758147613089,0.66132381,4543.8,4543.7,0.8868]
[1758147613792,1.22982381,4543.8,4543.7,0.8868]
[1758147613993,1.00482381,4543.8,4543.7,0.8868]
[1758147614193,1.22982381,4543.8,4543.7,0.8868]
[1758147614785,1.72984536,4543.8,4543.7,0.8868]
[1758147615192,1.72984536,4543.8,4543.7,0.09]
[1758147615493,4.93764536,4543.8,4543.7,0.09]
[1758147617188,1.72984536,4543.8,4543.7,0.09]
[1758147617596,4.93764536,4543.8,4543.7,0.09]
[1758147623897,1.72984536,4543.8,4543.7,0.8868]
[1758147624094,1.18212155,4543.8,4543.7,0.8868]
[1758147624299,0.225,4543.8,4543.7,0.8868]
[1758147624494,0.3442,4544.1,4543.7,0.8868]
[1758147624695,0.93608082,4544.0,4543.9,0.7968]
[1758147625196,0.95760505,4544.0,4543.9,0.7968]
[1758147625397,1.65720505,4544.0,4543.9,0.7968]
[1758147625898,1.7295868,4544.0,4543.9,0.7968]
[1758147626201,1.52610505,4544.0,4543.9,0.7968]
[1758147627299,1.65720505,4544.0,4543.9,0.2276]
[1758147627801,1.65720505,4544.0,4543.7,0.09]
[1758147627802,1.86072542,4544.0,4543.7,0.09]
[1758147628002,0.8013,4543.8,4543.7,0.09]
[1758147628197,4.51165403,4543.8,4543.7,0.09]
[1758147630205,4.73665403,4543.8,4543.7,0.6643]
[1758147630605,4.73665403,4543.8,4543.7,0.8868]
[1758147631005,4.73665403,4543.8,4543.7,0.3176]
[1758147631205,4.51165403,4543.8,4543.7,0.3176]
[1758147631402,4.73665403,4543.8,4543.7,0.6643]
[1758147631607,4.73665403,4543.8,4543.7,0.3176]
[1758147631809,4.73665403,4543.8,4543.7,0.6643]
[1758147634109,4.73665403,4543.8,4543.7,0.09]
[1758147634298,4.93766147,4543.8,4543.7,0.09]
[1758147635205,4.93767725,4543.8,4543.7,0.09]
[1758147635708,4.93767725,4543.8,4543.7,0.2987]
[1758147636507,4.73665403,4543.8,4543.7,0.8567]
[1758147637112,1.52885403,4543.8,4543.7,0.8567]
[1758147638813,3.5256,4544.4,4543.7,1.25264]
[1758147639006,1.46905622,4544.3,4544.2,0.7667]
[1758147639209,1.26796862,4544.3,4544.2,0.7667]
[1758147639406,0.7648,4544.3,4544.2,0.7667]
[1758147640808,0.222,4544.3,4544.2,0.7667]
[1758147641016,0.447,4544.3,4544.2,0.7667]
[1758147641415,0.7648,4544.3,4544.2,0.7667]
[1758147641829,0.998,4544.3,4544.2,0.7667]
[1758147643619,0.3178,4544.2,4543.9,3.5372]
[1758147643819,0.998,4544.1,4544.0,0.7667]
[1758147645025,0.998,4544.1,4544.0,0.9012]
[1758147646229,0.225,4544.1,4544.0,1.29712]
[1758147646523,35.884,4544.6,4544.5,0.4373]
[1758147646716,36.93030464,4544.6,4544.5,0.7667]
[1758147646916,37.16350464,4544.6,4544.5,0.7667]
[1758147647117,37.16350464,4544.6,4544.5,0.2087]
[1758147647319,36.66,4544.6,4544.5,0.2087]
[1758147647522,36.66,4544.6,4544.5,0.5381]
[1758147649229,0.4552,4544.3,4544.2,0.5381]
[1758147649427,0.998,4544.3,4544.2,0.2087]
[1758147649621,0.998,4544.3,4544.2,0.5381]
[1758147650028,0.998,4544.3,4544.2,0.7667]
[1758147652130,0.6802,4544.3,4543.9,3.2298]
[1758147652325,0.773,4544.2,4544.1,0.2087]
[1758147652521,0.1281,4544.0,4543.9,0.022]
[1758147652722,1.1261,4544.0,4543.9,0.022]
[1758147654323,1.33585019,4544.0,4543.9,0.022]
[1758147654524,1.83926313,4544.0,4543.9,0.022]
[1758147655224,5.83926313,4544.0,4543.7,0.266]
[1758147655429,5.83926313,4544.0,4541.9,0.158]
[1758147655430,0.4552,4542.5,4542.3,0.3294]
[1758147655622,0.998,4542.5,4542.4,0.5381]
[1758147656025,0.998,4542.5,4542.4,0.7667]
[1758147657832,0.4477,4542.1,4542.0,0.5703]
[1758147658426,0.7793,4542.1,4542.0,0.8932]
[1758147659731,0.4477,4542.1,4542.0,0.8932]
[1758147660027,0.225,4542.1,4542.0,0.8932]
[1758147660226,0.0865,4543.0,4542.7,0.2229]
[1758147660227,0.7793,4542.8,4542.7,0.2229]
[1758147660426,0.8703,4542.8,4542.7,0.5458]
[1758147660825,0.7793,4542.8,4542.7,0.7587]
[1758147661025,0.4477,4542.8,4542.7,0.7587]
[1758147661231,0.4518,4542.8,4542.7,0.7587]
[1758147661431,3.2078,4543.1,4543.0,0.889]
[1758147661623,3.4328,4543.1,4543.0,0.889]
[1758147661828,3.5394,4544.0,4543.0,4.0968]
[1758147662029,1.39122204,4543.9,4543.8,0.2229]
[1758147662225,0.3316,4543.8,4543.1,0.3229]
[1758147662532,0.3316,4543.8,4543.0,3.3381]
[1758147662533,0.7793,4543.8,4543.5,0.3229]
[1758147662832,0.3316,4543.7,4543.1,0.3229]
[1758147663135,0.2268,4543.2,4543.1,0.7587]
[1758147663331,0.4518,4543.2,4543.1,0.7587]
[1758147664231,0.3316,4543.7,4543.1,0.7587]
[1758147664534,0.4518,4543.6,4543.5,0.889]
[1758147664731,1.58240797,4545.8,4543.5,0.889]
[1758147664732,0.3316,4544.4,4543.6,0.3229]
[1758147664930,0.2268,4543.7,4543.6,0.5458]
[1758147665137,0.6727,4543.7,4543.6,0.7587]
[1758147666725,0.4477,4543.7,4543.6,0.7587]
[1758147666926,0.6727,4543.7,4543.6,0.7587]
[1758147667634,0.2101,4544.1,4544.0,0.8951]
[1758147667836,0.4351,4544.1,4544.0,0.8951]
[1758147668436,0.981,4544.1,4544.0,0.8951]
[1758147668831,0.981,4544.1,4544.0,0.7645]
[1758147670828,0.6475,4544.1,4544.0,0.8951]
[1758147671029,0.225,4544.1,4544.0,0.8951]
[1758147671426,0.4351,4544.1,4544.0,0.8951]
[1758147672239,39.2033,4544.6,4544.0,0.5563]
[1758147672435,0.86135894,4544.5,4544.4,0.7645]
[1758147672736,1.19485894,4544.5,4544.4,0.7645]
[1758147673333,0.6475,4544.5,4544.4,0.7645]
[1758147673639,0.981,4544.5,4544.4,0.7645]
[1758147674337,35.662,4544.6,4544.5,0.4694]
[1758147674536,0.4351,4544.6,4544.5,0.685]
[1758147674738,0.981,4544.6,4544.5,0.5544]
[1758147674937,0.4225,4544.6,4544.5,0.8951]
[1758147675139,0.225,4544.6,4544.5,0.8951]
[1758147675538,0.756,4545.5,4545.4,0.4257]
[1758147675741,1.70358906,4545.5,4545.4,0.7645]
[1758147677739,1.47858906,4545.5,4545.4,0.7645]
[1758147677939,1.70358906,4545.5,4545.4,0.7645]
[1758147678235,1.4897912,4545.5,4545.4,0.7645]
[1758147679140,1.49043068,4545.5,4545.4,0.7645]
[1758147679340,1.49043068,4545.5,4545.0,0.1306]
[1758147679341,1.0675,4545.5,4545.1,0.3388]
[1758147679938,1.0675,4545.5,4544.8,0.3388]
[1758147680136,0.8425,4545.5,4544.8,0.3388]
[1758147680339,0.981,4545.4,4545.3,0.5544]
[1758147680838,1.49033142,4545.4,4545.3,0.5544]
[1758147682438,0.981,4545.4,4545.3,0.5544]
[1758147683337,0.981,4545.4,4545.3,0.3388]
[1758147683736,0.981,4545.4,4545.0,0.1306]
[1758147683939,0.981,4545.4,4545.1,0.3388]
[1758147684441,0.981,4545.3,4545.2,0.5544]
[1758147684637,0.3335,4545.2,4544.7,0.5148]
[1758147684838,0.756,4544.8,4544.7,0.176]
[1758147685043,0.981,4544.8,4544.7,0.176]
[1758147687343,0.981,4544.8,4543.8,3.2078]
[1758147687540,0.981,4544.8,4544.1,0.3388]
[1758147687743,0.981,4544.8,4544.7,0.2156]
[1758147687941,0.981,4544.8,4544.7,0.5544]
[1758147688342,0.981,4544.8,4544.7,0.3388]
[1758147688738,0.981,4544.8,4544.2,0.3388]
[1758147689840,0.756,4544.8,4544.2,0.3388]
[1758147690046,0.2101,4544.3,4544.2,0.7645]
[1758147690247,0.4351,4544.3,4544.2,0.7645]
[1758147690943,3.4179,4545.0,4544.9,0.4257]
[1758147691244,0.225,4545.0,4544.9,0.7645]
[1758147692244,3.5413,4545.8,4545.0,0.4694]
[1758147692440,3.2078,4545.8,4545.7,0.7645]
[1758147692745,0.981,4546.4,4546.3,0.2156]
[1758147692949,0.3335,4546.3,4545.8,0.3388]
[1758147693142,0.2101,4545.9,4545.8,0.7645]
[1758147693447,0.225,4546.0,4545.9,0.3388]
[1758147693649,0.225,4546.0,4545.9,0.7645]
[1758147696449,0.5391,4546.3,4546.2,0.7661]
[1758147696649,0.7641,4546.3,4546.2,0.7661]
[1758147696849,0.9705,4546.3,4546.2,0.7661]
[1758147697349,0.637,4546.3,4546.2,0.7661]
[1758147697545,0.4306,4546.3,4546.2,0.7661]
[1758147698147,0.637,4546.3,4546.2,0.7661]
[1758147698351,0.9448,4546.3,4546.2,0.7661]
[1758147701054,0.9448,4546.3,4546.2,0.3365]
[1758147701551,0.637,4546.3,4546.2,0.7661]
[1758147701953,0.412,4546.3,4546.2,0.7661]
[1758147702147,0.9448,4546.3,4546.2,0.3365]
[1758147702349,0.7198,4546.2,4546.1,0.3365]
[1758147702756,0.7198,4546.2,4546.1,0.5599]
[1758147703255,0.2056,4546.2,4546.1,0.7661]
[1758147704555,0.4306,4546.2,4546.1,0.7661]
[1758147704751,0.2056,4546.2,4546.1,0.7661]
[1758147705051,0.4306,4546.2,4546.1,0.7661]
[1758147705857,0.637,4546.2,4546.1,0.7661]
[1758147706053,0.9448,4546.2,4546.1,0.3365]
[1758147706350,0.9448,4546.2,4545.8,0.3365]
[1758147707449,0.9448,4546.2,4545.7,0.0219]
[1758147708251,0.9448,4546.2,4545.8,0.3365]
[1758147708451,0.9448,4546.2,4545.7,0.0219]
[1758147708654,0.9448,4546.2,4545.8,0.3365]
[1758147708655,0.3078,4546.1,4545.8,0.3365]
[1758147708854,3.2078,4546.9,4546.0,0.8957]
[1758147709058,0.2056,4546.9,4546.8,0.7661]
[1758147709260,0.2056,4547.2,4547.1,0.5427]
[1758147709559,0.4306,4547.2,4547.1,0.7661]
[1758147709757,0.637,4547.2,4547.1,0.7661]
[1758147710055,0.9448,4547.2,4547.1,0.7661]
[1758147710252,0.7198,4547.2,4547.1,0.7661]
[1758147710450,0.637,4547.2,4547.1,0.7661]
[1758147710656,0.9448,4547.2,4547.1,0.7661]
[1758147711255,4.85692,4547.2,4546.2,0.3365]
[1758147711454,0.7198,4546.3,4545.5,0.1306]
[1758147711755,3.2078,4546.4,4545.7,0.2453]
[1758147711756,0.7198,4545.8,4545.7,0.2453]
[1758147711952,0.9448,4545.8,4545.7,0.5818]
[1758147712358,0.9448,4545.8,4545.7,0.788]
[1758147712761,0.637,4545.8,4545.7,0.788]
[1758147713957,0.4306,4545.8,4545.7,0.788]
[1758147715159,0.637,4545.8,4545.7,0.788]
[1758147715958,0.9448,4545.8,4545.7,0.788]
[1758147716856,0.9448,4545.8,4545.7,0.0219]
[1758147718060,0.9448,4545.8,4545.7,0.5415]
[1758147718261,0.9448,4545.8,4545.7,0.7542]
[1758147718262,0.2056,4545.8,4545.7,0.7542]
[1758147718462,0.4306,4545.8,4545.7,0.7542]
[1758147718863,0.2056,4545.8,4545.7,0.7542]
[1758147719063,0.4306,4545.8,4545.7,0.7542]
[1758147719859,3.4178,4546.4,4546.3,0.7323]
[1758147720159,4.14803231,4546.4,4546.3,0.7323]
[1758147720361,3.93803231,4546.4,4546.3,0.7323]
[1758147720562,3.2078,4546.4,4546.3,0.7323]
[1758147721159,0.435,4546.6,4546.5,0.8618]
[1758147721965,0.4228,4547.0,4546.9,0.4219]
[1758147722166,0.73079457,4547.0,4546.9,0.7323]
[1758147722366,0.95579457,4547.0,4546.9,0.7323]
[1758147723261,0.96039141,4547.0,4546.9,0.7323]
[1758147724164,1.17039141,4547.0,4546.9,0.7323]
[1758147724468,0.65748598,4547.0,4546.9,0.7323]
[1758147725061,0.65744912,4547.0,4546.9,0.7323]
[1758147725363,0.43244912,4547.0,4546.9,0.7323]
[1758147725563,0.65744912,4547.0,4546.9,0.7323]
[1758147725964,0.43244912,4547.0,4546.9,0.7323]
[1758147726172,0.759,4547.9,4547.8,0.5218]
[1758147726365,1.39514415,4547.9,4547.8,0.7252]
[1758147726664,1.17014415,4547.9,4547.8,0.7252]
[1758147726871,0.22235859,4547.9,4547.8,0.7252]
[1758147727067,0.44735859,4547.9,4547.8,0.7252]
[1758147727364,0.44735859,4547.9,4547.5,0.52131]
[1758147727365,0.2366,4548.2,4548.1,0.7252]
[1758147727569,1.22818432,4548.2,4548.1,0.5218]
[1758147727962,0.682,4548.2,4548.1,0.7252]
[1758147728162,0.4616,4548.2,4548.1,0.7252]
[1758147728363,0.022,4548.2,4548.1,0.7252]
[1758147728572,0.247,4548.2,4548.1,0.7252]
[1758147728767,0.022,4548.2,4548.1,0.7252]
[1758147729073,0.247,4548.2,4548.1,0.7252]
[1758147730472,0.022,4548.2,4548.1,0.7252]
[1758147730763,0.247,4548.2,4548.1,0.7252]
[1758147731170,0.022,4548.2,4548.1,0.7252]
[1758147731370,0.774,4549.4,4548.3,0.39554]
[1758147731573,0.66,4549.3,4549.2,0.7252]
[1758147731766,0.435,4549.3,4549.2,0.7252]
[1758147731966,0.66,4549.3,4549.2,0.7252]
[1758147732762,0.984,4549.3,4549.2,0.7252]
[1758147735672,0.984,4549.3,4549.2,0.5218]
[1758147736170,0.66,4549.3,4549.2,0.7252]
[1758147736373,0.984,4549.3,4549.2,0.7252]
[1758147737769,0.759,4549.3,4549.2,0.7252]
[1758147737969,0.984,4549.3,4549.2,0.7252]
[1758147741575,0.759,4549.3,4549.2,0.7252]
[1758147741775,0.984,4549.3,4549.2,0.7252]
[1758147742481,0.659,4549.3,4549.2,0.7252]
[1758147743586,0.435,4549.3,4549.2,0.7252]
[1758147743787,0.659,4549.3,4549.2,0.7252]
[1758147744685,0.435,4549.3,4549.2,0.7252]
[1758147744891,0.659,4549.3,4549.2,0.7252]
[1758147745784,0.45,4549.4,4549.3,0.7252]
[1758147745990,0.674,4549.4,4549.3,0.7252]
[1758147746490,0.45,4549.4,4549.3,0.7252]
[1758147763303,0.1969,4549.2,4549.1,0.496]
[1758147763506,0.7006,4549.2,4549.1,0.1977]
[1758147763711,0.7006,4549.2,4549.1,0.1758]
[1758147764206,0.7006,4549.2,4549.1,0.4741]
[1758147764406,0.45,4549.4,4549.1,0.5793]
[1758147764598,3.2078,4550.0,4549.5,0.0698]
[1758147764797,3.2078,4550.0,4549.9,0.7018]
[1758147765107,0.73703729,4550.0,4549.9,0.7018]
[1758147765300,0.22268068,4550.0,4549.9,0.7018]
[1758147765703,3.43048068,4550.0,4549.9,0.7018]
[1758147765900,3.2078,4550.0,4549.9,0.7018]
[1758147766303,3.5119,4550.0,4549.9,0.7018]
[1758147766609,4.034,4550.0,4549.9,0.4035]
[1758147767407,4.034,4550.0,4549.3,0.2983]
[1758147767610,4.034,4550.0,4549.7,0.0219]
[1758147769102,4.034,4550.0,4549.9,0.1958]
[1758147769309,4.034,4550.0,4549.7,0.0219]
[1758147771109,0.3965,4549.8,4549.7,0.0219]
[1758147771311,0.9246,4549.8,4549.7,0.0219]
[1758147773016,0.7006,4549.8,4549.7,0.7237]
[1758147773311,0.7006,4549.8,4549.7,0.0219]
[1758147774215,0.9246,4549.8,4549.7,0.0219]
[1758147774711,0.5221,4549.0,4548.9,0.7018]
[1758147775114,0.3965,4549.0,4548.9,0.7018]
[1758147775314,0.7006,4549.0,4548.9,0.7018]
[1758147776909,0.501,4549.0,4548.9,0.7018]
[1758147779220,0.7006,4549.0,4548.9,0.7018]
[1758147780122,0.8208,4549.0,4548.9,0.7018]
[1758147780319,0.8208,4549.0,4548.9,0.4035]
[1758147780720,0.3126,4548.9,4548.8,3.2078]
[1758147780915,0.7282,4548.9,4548.8,3.2078]
[1758147781116,0.7282,4548.9,4548.8,3.403]
[1758147782423,0.7282,4548.9,4548.8,3.9331]
[1758147783121,0.7282,4548.9,4548.8,3.2078]
[1758147783323,0.1202,4548.5,4548.1,0.0219]
[1758147783624,0.7282,4548.2,4548.1,0.0219]
[1758147784126,0.4156,4547.9,4547.8,3.7219]
[1758147784324,0.7282,4547.9,4547.8,3.9331]
[1758147784527,4.0562,4548.5,4548.4,0.1952]
[1758147785126,0.8484,4548.5,4548.4,0.1952]
[1758147786423,0.8484,4548.5,4548.4,0.4877]
[1758147788020,0.8484,4548.5,4548.0,0.4168]
[1758147788220,0.4041,4548.0,4547.9,0.6963]
[1758147788429,0.7144,4548.0,4547.9,0.6963]
[1758147788927,0.8389,4548.0,4547.8,3.2078]
[1758147789128,0.7144,4547.9,4547.8,3.5003]
[1758147789321,0.7144,4547.9,4547.8,3.9041]
[1758147789927,0.1975,4547.9,4547.8,3.9041]
[1758147790526,0.3103,4548.2,4547.8,3.9041]
[1758147790728,0.3103,4548.4,4547.9,0.2925]
[1758147791031,0.3103,4548.4,4547.8,3.2078]
[1758147791032,0.7144,4548.4,4548.3,0.4946]
[1758147791326,0.7144,4548.4,4548.3,0.2021]
[1758147791831,0.7144,4548.4,4548.0,0.2925]
[1758147792130,0.1202,4548.5,4547.8,3.7024]
[1758147792131,0.7144,4547.9,4547.8,3.7024]
[1758147793322,0.7144,4547.9,4547.8,3.9041]
[1758147793525,0.7144,4547.9,4547.8,4.29969]
[1758147793725,0.7144,4547.9,4547.8,3.9041]
[1758147794529,0.3103,4548.4,4548.3,0.39554]
[1758147794831,0.7144,4548.9,4548.8,0.6963]
[1758147796734,0.7144,4548.9,4548.8,1.0918]
[1758147797137,0.7144,4548.9,4548.8,0.6963]
[1758147797731,0.7144,4548.9,4548.8,1.0918]
[1758147798325,3.2078,4549.6,4548.9,0.2925]
[1758147798638,3.9222,4549.6,4549.5,0.4038]
[1758147799038,3.9222,4549.6,4549.5,0.2021]
[1758147800336,0.7144,4549.1,4549.0,0.4038]
[1758147800930,0.7144,4549.1,4549.0,0.6963]
[1758147801932,0.7144,4549.1,4549.0,0.2021]
[1758147803537,0.7144,4549.1,4549.0,0.6963]
[1758147807037,0.7144,4549.1,4548.6,0.224]
[1758147807038,0.1245,4548.5,4548.3,0.1758]
[1758147807243,0.7144,4548.4,4548.3,0.1758]
[1758147807742,0.7144,4548.4,4548.2,0.2925]
[1758147808139,0.4041,4548.4,4548.3,0.2021]
[1758147808335,0.4041,4548.4,4548.3,0.6963]
[1758147808734,0.1975,4548.4,4548.3,0.6963]
[1758147808934,0.1975,4548.4,4548.3,3.9041]
[1758147809442,0.7144,4548.4,4548.3,3.9041]
[1758147812643,0.1975,4548.4,4548.3,3.9041]
[1758147813549,0.5078,4548.4,4548.3,3.9041]
[1758147814146,0.1975,4548.4,4548.3,3.9041]
[1758147814347,0.1975,4548.4,4548.3,4.29964]
[1758147814547,0.1975,4548.4,4548.3,3.9041]
[1758147817448,0.3053,4549.4,4548.6,0.3964]
[1758147817653,0.4321,4549.3,4549.2,0.3964]
[1758147817849,0.9418,4549.3,4549.2,0.6842]
[1758147821256,0.9418,4549.3,4549.2,0.1985]
[1758147821455,0.9418,4549.3,4548.9,0.2878]
[1758147821757,0.5343,4549.0,4548.9,0.4863]
[1758147821950,0.8396,4549.0,4548.9,0.4863]
[1758147823857,0.8396,4549.0,4548.6,0.2878]
[1758147824354,0.7178,4548.9,4548.8,0.4863]
[1758147824753,0.7178,4548.9,4548.3,3.2078]
[1758147824754,0.7178,4548.9,4548.5,0.2878]
[1758147825057,0.7178,4548.4,4548.3,3.2078]
[1758147825254,0.7178,4548.4,4548.1,0.2878]
[1758147827156,0.7178,4548.3,4548.2,0.1985]
[1758147827355,0.7178,4548.3,4548.2,0.4863]
[1758147828551,0.7178,4548.3,4548.2,0.1985]
[1758147828756,0.7178,4548.3,4547.9,0.2878]
[1758147828951,0.3053,4548.2,4547.8,0.2878]
[1758147829157,0.7178,4547.9,4547.8,0.6842]
[1758147830355,0.7178,4547.8,4547.7,3.3837]
[1758147831351,0.7178,4547.8,4547.7,0.1759]
[1758147831558,8.14549,4547.8,4547.7,0.1759]
[1758147831754,7.9256,4547.8,4547.7,0.1759]
[1758147832349,0.5343,4547.0,4546.9,0.2878]
[1758147832658,0.8396,4547.0,4546.9,0.4863]
[1758147833758,0.7178,4546.6,4546.5,0.5082]
[1758147834062,0.7178,4546.6,4546.5,0.7061]
[1758147834257,0.2081,4546.6,4546.5,0.8269]
[1758147835155,0.7178,4547.4,4547.3,0.1985]
[1758147835356,0.9418,4547.4,4547.3,0.4863]
[1758147835857,0.7178,4547.4,4547.3,0.6842]
[1758147836063,0.9418,4547.4,4547.3,0.6842]
[1758147836755,3.2078,4547.7,4547.5,0.1208]
[1758147836957,0.7178,4547.4,4547.3,0.2878]
[1758147837262,0.5097,4547.3,4547.2,0.1985]
[1758147837461,0.7108,4547.3,4547.2,0.7134]
[1758147838063,0.7108,4547.3,4547.2,0.1985]
[1758147839660,0.9348,4547.3,4547.2,0.1985]
[1758147839865,0.9348,4547.3,4547.2,0.7134]
[1758147841861,0.7108,4547.3,4547.2,0.7134]
[1758147842060,0.9348,4547.3,4547.2,0.7134]
[1758147843064,0.7108,4547.3,4547.2,0.7134]
[1758147843265,0.4251,4547.3,4547.2,0.7134]
[1758147843862,0.224,4547.4,4547.2,0.7134]
[1758147844077,0.2978,4547.4,4547.3,0.5111]
[1758147844371,0.3491,4547.5,4547.0,0.5111]
[1758147844372,0.6973,4547.1,4547.0,0.5111]
[1758147848672,0.6973,4547.1,4547.0,0.7205]
[1758147849568,0.6973,4547.1,4547.0,0.8373]
[1758147850871,0.224,4547.3,4547.2,0.4167]
[1758147851072,0.224,4547.3,4547.2,0.7318]
[1758147851073,0.7354,4547.3,4547.2,0.7318]
[1758147851678,0.224,4547.4,4547.3,0.3151]
[1758147851867,0.4275,4547.4,4547.3,0.7318]
[1758147852068,0.7354,4547.4,4547.3,0.7318]
[1758147852567,0.5114,4547.4,4547.3,0.7318]
[1758147852772,0.721,4547.4,4547.3,0.7318]
[1758147855675,1.721,4547.4,4547.3,0.7318]
[1758147856277,1.94987412,4547.4,4547.3,0.7318]
[1758147856478,0.721,4547.3,4547.2,0.5217]
[1758147856678,0.94987412,4547.3,4547.2,0.5217]
[1758147857073,0.94987412,4547.3,4547.2,0.7318]
[1758147864582,0.94987412,4547.3,4546.7,3.7514]
[1758147864583,0.721,4546.8,4546.7,3.7514]
[1758147866699,1.47527596,4546.8,4546.7,0.0219]
[1758147866887,4.68307596,4546.8,4546.7,0.0219]
[1758147867094,1.47527596,4546.8,4546.7,0.0219]
[1758147867293,1.69521596,4546.8,4546.7,0.0219]
[1758147867691,1.47527596,4546.8,4546.7,0.0219]
[1758147868988,5.69521596,4546.8,4546.7,0.0219]
[1758147869195,0.721,4546.2,4545.5,3.3286]
[1758147869501,0.721,4545.6,4545.5,3.7453]
[1758147869698,0.721,4545.6,4545.5,3.4144]
[1758147869902,0.913,4545.6,4545.5,3.4144]
[1758147870798,0.913,4545.6,4545.5,0.5217]
[1758147871296,0.913,4545.6,4545.1,0.3151]
[1758147871502,0.721,4545.4,4545.1,0.3151]
[1758147872695,0.96060325,4545.4,4544.8,0.3151]
[1758147872895,0.721,4544.6,4544.5,3.4316]
[1758147873296,0.721,4544.6,4544.5,3.225]
[1758147873499,0.721,4544.6,4544.5,0.0172]
[1758147873900,0.945,4544.6,4544.5,0.0172]
[1758147875105,0.945,4544.6,4544.1,0.3151]
[1758147875406,0.5114,4544.0,4543.9,0.7318]
[1758147875803,0.224,4544.2,4544.1,0.688]
[1758147876404,0.4328,4544.2,4544.1,0.688]
[1758147877001,0.744,4544.2,4544.1,0.688]
[1758147878206,0.52,4544.2,4544.1,0.688]
[1758147878399,0.744,4544.2,4544.1,0.688]
[1758147878902,0.938,4544.2,4544.1,0.688]
[1758147880303,0.938,4544.2,4544.1,0.4961]
[1758147880608,0.938,4544.2,4544.1,0.1981]
[1758147881001,0.714,4544.2,4543.9,0.298]
[1758147881204,0.8311,4544.0,4543.9,0.4961]
[1758147881405,0.3112,4544.4,4543.9,0.39]
[1758147881606,0.744,4544.3,4544.2,0.39]
[1758147881906,0.744,4544.3,4544.2,0.688]
[1758147883510,0.3112,4544.7,4544.3,0.298]
[1758147883815,0.3112,4544.7,4544.6,0.688]
[1758147884007,0.744,4544.7,4544.6,0.688]
[1758147885911,0.52,4544.7,4544.6,0.688]
[1758147886113,0.744,4544.7,4544.6,0.688]
[1758147887515,0.938,4544.7,4544.6,0.688]
[1758147890221,0.938,4544.7,4544.6,0.1981]
[1758147890413,0.938,4544.7,4544.6,0.4961]
[1758147890608,0.938,4544.7,4544.6,0.688]
[1758147890814,0.3112,4545.3,4544.7,0.298]
[1758147891009,0.4328,4545.8,4545.7,0.1981]
[1758147891215,0.938,4545.8,4545.7,0.688]
[1758147892214,0.714,4545.8,4545.7,0.688]
[1758147892414,0.938,4545.8,4545.7,0.688]